[Event "Early-Titled-Tuesday-Blitz-February-06-2024"]
[Site "Chess.com"]
[Date "2024.02.06"]
[Round "4"]
[White "wadsy27"]
[Black "SantoBlue"]
[Result "0-1"]
[WhiteElo "2617"]
[BlackElo "2999"]
[TimeControl "180+1"]
[EndTime "8:38:52 PST"]
[Termination "SantoBlue won by resignation"]

1. c4 {[%clk 0:02:56.1]} 1... d6 {[%clk 0:02:58.4]} 2. g3 {[%clk 0:02:56]} 2...
Nf6 {[%clk 0:02:56.5]} 3. Bg2 {[%clk 0:02:56.3]} 3... g6 {[%clk 0:02:57.2]} 4.
Nc3 {[%clk 0:02:56.8]} 4... Bg7 {[%clk 0:02:57.9]} 5. d4 {[%clk 0:02:53.9]} 5...
O-O {[%clk 0:02:58.3]} 6. h3 {[%clk 0:02:54]} 6... c6 {[%clk 0:02:55]} 7. Nf3
{[%clk 0:02:50.3]} 7... Qb6 {[%clk 0:02:55.6]} 8. O-O {[%clk 0:02:44]} 8... Qa6
{[%clk 0:02:55.9]} 9. b3 {[%clk 0:02:38.7]} 9... b5 {[%clk 0:02:55.7]} 10. cxb5
{[%clk 0:02:14.7]} 10... cxb5 {[%clk 0:02:56.6]} 11. a4 {[%clk 0:02:12.9]} 11...
b4 {[%clk 0:02:52.9]} 12. Nb5 {[%clk 0:02:13.2]} 12... Qb7 {[%clk 0:02:49.1]}
13. Ne5 {[%clk 0:01:36.6]} 13... d5 {[%clk 0:02:16.1]} 14. Bf4 {[%clk
0:01:25.9]} 14... a6 {[%clk 0:02:13]} 15. Nc7 {[%clk 0:01:25.8]} 15... Qxc7
{[%clk 0:01:50.9]} 16. Nxg6 {[%clk 0:01:25.8]} 16... Qb6 {[%clk 0:01:48.5]} 17.
Nxf8 {[%clk 0:01:25.7]} 17... Kxf8 {[%clk 0:01:49]} 18. Rc1 {[%clk 0:01:14.6]}
18... Nc6 {[%clk 0:01:47.3]} 19. Be5 {[%clk 0:01:14.4]} 19... Nxe5 {[%clk
0:01:34.2]} 20. dxe5 {[%clk 0:01:14.5]} 20... Ne4 {[%clk 0:01:34.9]} 21. Qxd5
{[%clk 0:00:46.2]} 21... Bb7 {[%clk 0:01:34.6]} 22. a5 {[%clk 0:00:44.4]} 22...
Qxf2+ {[%clk 0:00:55.7]} 23. Rxf2 {[%clk 0:00:35.2]} 23... Bxd5 {[%clk
0:00:56.6]} 24. Bxe4 {[%clk 0:00:20.9]} 24... Bxe4 {[%clk 0:00:56]} 25. Rf4
{[%clk 0:00:21.4]} 25... Bh6 {[%clk 0:00:52.8]} 26. Rc4 {[%clk 0:00:18.6]} 26...
Bxf4 {[%clk 0:00:52.1]} 27. gxf4 {[%clk 0:00:19]} 27... Bf5 {[%clk 0:00:49.6]}
28. Rxb4 {[%clk 0:00:19.1]} 28... Bxh3 {[%clk 0:00:49.8]} 29. Rb6 {[%clk
0:00:16.7]} 29... Bd7 {[%clk 0:00:49.9]} 30. Kf2 {[%clk 0:00:15.7]} 30... Bb5
{[%clk 0:00:50.6]} 31. e3 {[%clk 0:00:15.1]} 31... Kg7 {[%clk 0:00:51.2]} 32. f5
{[%clk 0:00:14.9]} 32... h5 {[%clk 0:00:51.7]} 33. Kg3 {[%clk 0:00:14.9]} 33...
Rc8 {[%clk 0:00:50.8]} 34. Kh4 {[%clk 0:00:15]} 34... Rc5 {[%clk 0:00:50.6]} 35.
f6+ {[%clk 0:00:07.8]} 35... exf6 {[%clk 0:00:51.5]} 36. exf6+ {[%clk
0:00:08.2]} 36... Kg6 {[%clk 0:00:52.2]} 37. e4 {[%clk 0:00:07.7]} 37... Re5
{[%clk 0:00:52]} 0-1

[Event "Early-Titled-Tuesday-Blitz-February-06-2024"]
[Site "Chess.com"]
[Date "2024.02.06"]
[Round "4"]
[White "maximnovik"]
[Black "PapaieDudu"]
[Result "1-0"]
[WhiteElo "2609"]
[BlackElo "2415"]
[TimeControl "180+1"]
[EndTime "8:38:52 PST"]
[Termination "maximnovik won by resignation"]

1. e4 {[%clk 0:03:00.9]} 1... c5 {[%clk 0:02:54.5]} 2. Nf3 {[%clk 0:03:00.8]}
2... d6 {[%clk 0:02:52.4]} 3. d4 {[%clk 0:03:01]} 3... cxd4 {[%clk 0:02:53.3]}
4. Nxd4 {[%clk 0:03:01.4]} 4... Nf6 {[%clk 0:02:53.7]} 5. Nc3 {[%clk 0:03:01.9]}
5... a6 {[%clk 0:02:54.2]} 6. h3 {[%clk 0:03:02]} 6... e5 {[%clk 0:02:49]} 7.
Nb3 {[%clk 0:03:01.4]} 7... Be7 {[%clk 0:02:46.5]} 8. Be3 {[%clk 0:03:01.3]}
8... O-O {[%clk 0:02:45.1]} 9. Qf3 {[%clk 0:03:01.1]} 9... Be6 {[%clk
0:02:36.3]} 10. O-O-O {[%clk 0:03:00.6]} 10... b5 {[%clk 0:02:33.6]} 11. g4
{[%clk 0:03:00.3]} 11... g6 {[%clk 0:02:25.1]} 12. g5 {[%clk 0:02:52.4]} 12...
Nh5 {[%clk 0:02:22.6]} 13. h4 {[%clk 0:02:52.8]} 13... Qc8 {[%clk 0:02:18.6]}
14. Nd5 {[%clk 0:02:47.1]} 14... Bd8 {[%clk 0:02:18.1]} 15. Be2 {[%clk
0:02:39.3]} 15... Nd7 {[%clk 0:01:51]} 16. Qg2 {[%clk 0:02:38.7]} 16... Bxd5
{[%clk 0:01:48]} 17. Rxd5 {[%clk 0:02:33.3]} 17... Nf4 {[%clk 0:01:43.5]} 18.
Bxf4 {[%clk 0:02:32.2]} 18... exf4 {[%clk 0:01:43.7]} 19. h5 {[%clk 0:02:21.6]}
19... Ne5 {[%clk 0:01:33.6]} 20. Qh2 {[%clk 0:02:00.1]} 20... Bxg5 {[%clk
0:01:13.2]} 21. hxg6 {[%clk 0:01:59.7]} 21... h6 {[%clk 0:01:12.2]} 22. gxf7+
{[%clk 0:01:58]} 22... Nxf7 {[%clk 0:01:06.5]} 23. Kb1 {[%clk 0:01:53]} 23...
Qd8 {[%clk 0:01:00.5]} 24. Nd4 {[%clk 0:01:50]} 24... Qf6 {[%clk 0:00:51.9]} 25.
Nf5 {[%clk 0:01:49]} 25... Rfe8 {[%clk 0:00:42.6]} 26. Rg1 {[%clk 0:01:46.7]}
26... Kf8 {[%clk 0:00:41.1]} 27. Bh5 {[%clk 0:01:37.4]} 27... Re5 {[%clk
0:00:37.8]} 28. Bxf7 {[%clk 0:01:36.6]} 28... Qxf7 {[%clk 0:00:32.1]} 29. Nxh6
{[%clk 0:01:16]} 29... Qe7 {[%clk 0:00:26.4]} 30. Nf5 {[%clk 0:01:12.9]} 30...
Qf6 {[%clk 0:00:25.8]} 31. Rxd6 {[%clk 0:01:09.8]} 31... Rd8 {[%clk 0:00:10.9]}
32. Rxf6+ {[%clk 0:01:08.9]} 32... Bxf6 {[%clk 0:00:11.8]} 33. Qh6+ {[%clk
0:01:08.9]} 33... Kf7 {[%clk 0:00:11]} 34. Qh7+ {[%clk 0:01:08.7]} 34... Ke6
{[%clk 0:00:10.8]} 35. a3 {[%clk 0:01:04.9]} 35... Rxe4 {[%clk 0:00:09.2]} 36.
Ng7+ {[%clk 0:01:04.8]} 36... Kd5 {[%clk 0:00:06.7]} 37. Qf5+ {[%clk 0:01:03.3]}
37... Be5 {[%clk 0:00:06.9]} 38. Rd1+ {[%clk 0:01:02]} 38... Kc6 {[%clk
0:00:02.2]} 39. Qxe4+ {[%clk 0:01:01.5]} 39... Rd5 {[%clk 0:00:02.2]} 40. Qxd5+
{[%clk 0:01:00.3]} 1-0

[Event "Early-Titled-Tuesday-Blitz-February-06-2024"]
[Site "Chess.com"]
[Date "2024.02.06"]
[Round "4"]
[White "lucliasco"]
[Black "CristianS27"]
[Result "1-0"]
[WhiteElo "2873"]
[BlackElo "2578"]
[TimeControl "180+1"]
[EndTime "8:38:54 PST"]
[Termination "lucliasco won by resignation"]

1. e4 {[%clk 0:02:56.1]} 1... e5 {[%clk 0:02:59.1]} 2. Nf3 {[%clk 0:02:55.3]}
2... Nc6 {[%clk 0:02:59.7]} 3. Bc4 {[%clk 0:02:54.9]} 3... Nf6 {[%clk
0:02:59.6]} 4. Ng5 {[%clk 0:02:54.3]} 4... d5 {[%clk 0:02:58.9]} 5. exd5 {[%clk
0:02:54.3]} 5... Nd4 {[%clk 0:02:59.6]} 6. c3 {[%clk 0:02:54]} 6... b5 {[%clk
0:02:59.7]} 7. Bf1 {[%clk 0:02:54.1]} 7... Nxd5 {[%clk 0:02:59.9]} 8. Ne4 {[%clk
0:02:49.4]} 8... Qh4 {[%clk 0:02:21]} 9. d3 {[%clk 0:02:33.5]} 9... Bg4 {[%clk
0:02:08.5]} 10. Bg5 {[%clk 0:02:11.7]} 10... Qh5 {[%clk 0:01:34.1]} 11. Qc1
{[%clk 0:01:56.5]} 11... Ne6 {[%clk 0:01:26.6]} 12. h4 {[%clk 0:01:49.2]} 12...
Nxg5 {[%clk 0:01:21.2]} 13. Qxg5 {[%clk 0:01:45.1]} 13... Be7 {[%clk 0:01:14.2]}
14. Qxh5 {[%clk 0:01:40.6]} 14... Bxh5 {[%clk 0:01:15.1]} 15. g3 {[%clk
0:01:28.7]} 15... O-O {[%clk 0:00:58]} 16. Be2 {[%clk 0:01:27.3]} 16... Bxe2
{[%clk 0:00:56.7]} 17. Kxe2 {[%clk 0:01:28.2]} 17... f5 {[%clk 0:00:52]} 18.
Ned2 {[%clk 0:01:24.7]} 18... Rad8 {[%clk 0:00:47.2]} 19. a4 {[%clk 0:01:17.9]}
19... b4 {[%clk 0:00:47]} 20. Rc1 {[%clk 0:01:06.7]} 20... Rb8 {[%clk
0:00:27.1]} 21. c4 {[%clk 0:01:02.7]} 21... Nf6 {[%clk 0:00:26]} 22. Nb3 {[%clk
0:01:03.4]} 22... e4 {[%clk 0:00:21]} 23. d4 {[%clk 0:01:01.1]} 23... f4 {[%clk
0:00:21.4]} 24. N1d2 {[%clk 0:00:45.5]} 24... f3+ {[%clk 0:00:19.4]} 25. Kf1
{[%clk 0:00:45.3]} 25... Rbe8 {[%clk 0:00:17.6]} 26. Re1 {[%clk 0:00:43]} 26...
Bd8 {[%clk 0:00:14.8]} 27. Re3 {[%clk 0:00:38]} 27... Re7 {[%clk 0:00:07.2]} 28.
Rae1 {[%clk 0:00:38]} 28... Rfe8 {[%clk 0:00:07.7]} 29. Nc5 {[%clk 0:00:36.7]}
29... Ng4 {[%clk 0:00:05.2]} 30. Rxe4 {[%clk 0:00:36.3]} 30... Rxe4 {[%clk
0:00:05.2]} 31. Rxe4 {[%clk 0:00:37.2]} 31... Rf8 {[%clk 0:00:04.1]} 32. Rxg4
{[%clk 0:00:36.6]} 1-0

[Event "Early-Titled-Tuesday-Blitz-February-06-2024"]
[Site "Chess.com"]
[Date "2024.02.06"]
[Round "4"]
[White "Rdeux42"]
[Black "Baby_Legs"]
[Result "0-1"]
[WhiteElo "2437"]
[BlackElo "2644"]
[TimeControl "180+1"]
[EndTime "8:38:57 PST"]
[Termination "Baby_Legs won on time"]

1. e4 {[%clk 0:03:00.9]} 1... c6 {[%clk 0:02:59.2]} 2. d4 {[%clk 0:03:00.4]}
2... d5 {[%clk 0:03:00.1]} 3. Nc3 {[%clk 0:03:00.9]} 3... dxe4 {[%clk
0:03:00.1]} 4. Nxe4 {[%clk 0:03:01.8]} 4... Bf5 {[%clk 0:03:00.2]} 5. Ng3 {[%clk
0:03:02.1]} 5... Bg6 {[%clk 0:03:00.6]} 6. h4 {[%clk 0:03:03]} 6... h6 {[%clk
0:03:00.8]} 7. Nf3 {[%clk 0:03:03.9]} 7... Nd7 {[%clk 0:02:59.5]} 8. h5 {[%clk
0:03:04.8]} 8... Bh7 {[%clk 0:02:59.8]} 9. Bd3 {[%clk 0:03:05.7]} 9... Bxd3
{[%clk 0:03:00.3]} 10. Qxd3 {[%clk 0:03:06.6]} 10... e6 {[%clk 0:03:01]} 11. Bd2
{[%clk 0:03:07.2]} 11... Ngf6 {[%clk 0:03:01.3]} 12. O-O-O {[%clk 0:03:07.8]}
12... Qb6 {[%clk 0:03:01.1]} 13. Kb1 {[%clk 0:03:05.8]} 13... Bb4 {[%clk
0:02:56.1]} 14. Ne4 {[%clk 0:02:58.9]} 14... Nxe4 {[%clk 0:02:48.6]} 15. Qxe4
{[%clk 0:02:59.8]} 15... Nf6 {[%clk 0:02:47.5]} 16. Qe2 {[%clk 0:02:56.8]} 16...
Bxd2 {[%clk 0:02:44.5]} 17. Rxd2 {[%clk 0:02:55.7]} 17... Qb5 {[%clk 0:02:38.7]}
18. Qxb5 {[%clk 0:02:41.5]} 18... cxb5 {[%clk 0:02:39.6]} 19. Ne5 {[%clk
0:02:41.8]} 19... Ke7 {[%clk 0:02:30.5]} 20. g4 {[%clk 0:02:39]} 20... Nd5
{[%clk 0:02:28.4]} 21. c3 {[%clk 0:02:29.7]} 21... Rhd8 {[%clk 0:02:26.1]} 22.
Rh3 {[%clk 0:02:25.8]} 22... f6 {[%clk 0:02:25.3]} 23. Ng6+ {[%clk 0:02:22.3]}
23... Kf7 {[%clk 0:02:23.9]} 24. Re2 {[%clk 0:02:16.3]} 24... Rac8 {[%clk
0:02:18.5]} 25. a3 {[%clk 0:02:10.3]} 25... a5 {[%clk 0:02:17.8]} 26. Rc2 {[%clk
0:02:00.1]} 26... b4 {[%clk 0:02:12.9]} 27. axb4 {[%clk 0:01:58.8]} 27... axb4
{[%clk 0:02:13.2]} 28. cxb4 {[%clk 0:00:49.1]} 28... Nxb4 {[%clk 0:02:13.3]} 29.
Rxc8 {[%clk 0:00:48.4]} 29... Rxc8 {[%clk 0:02:14.2]} 30. Rb3 {[%clk 0:00:48.2]}
30... Rc4 {[%clk 0:02:13.7]} 31. Rc3 {[%clk 0:00:45.1]} 31... Rc6 {[%clk
0:02:03]} 32. Nf4 {[%clk 0:00:33.5]} 32... Ke7 {[%clk 0:01:55.7]} 33. Rxc6
{[%clk 0:00:30.4]} 33... Nxc6 {[%clk 0:01:54.9]} 34. d5 {[%clk 0:00:30.6]} 34...
exd5 {[%clk 0:01:52.9]} 35. Nxd5+ {[%clk 0:00:31.5]} 35... Kd6 {[%clk
0:01:52.7]} 36. Ne3 {[%clk 0:00:31.6]} 36... Ke5 {[%clk 0:01:42.4]} 37. Nf5
{[%clk 0:00:25.8]} 37... Kf4 {[%clk 0:01:42.3]} 38. Nxg7 {[%clk 0:00:13.9]}
38... Kxg4 {[%clk 0:01:42.7]} 39. Ne8 {[%clk 0:00:12.4]} 39... f5 {[%clk
0:01:40.6]} 40. Nd6 {[%clk 0:00:09.8]} 40... b6 {[%clk 0:01:40.9]} 41. Kc2
{[%clk 0:00:10.1]} 41... f4 {[%clk 0:01:37]} 42. Kd3 {[%clk 0:00:06.9]} 42...
Kxh5 {[%clk 0:01:37]} 43. Kc4 {[%clk 0:00:07.2]} 43... Kg4 {[%clk 0:01:34.3]}
44. Kb5 {[%clk 0:00:07.2]} 44... Nd4+ {[%clk 0:01:34.7]} 45. Kxb6 {[%clk
0:00:07.4]} 45... h5 {[%clk 0:01:35.3]} 46. Kc5 {[%clk 0:00:07.7]} 46... h4
{[%clk 0:01:18.3]} 47. Kxd4 {[%clk 0:00:06.6]} 47... h3 {[%clk 0:01:18.8]} 48.
f3+ {[%clk 0:00:03.1]} 48... Kxf3 {[%clk 0:01:15.1]} 49. Nc4 {[%clk 0:00:01.8]}
49... h2 {[%clk 0:01:14.5]} 50. Ne5+ {[%clk 0:00:02.7]} 50... Kg3 {[%clk
0:01:13.9]} 0-1

[Event "Early-Titled-Tuesday-Blitz-February-06-2024"]
[Site "Chess.com"]
[Date "2024.02.06"]
[Round "4"]
[White "FREDERICKtheMATE"]
[Black "bylavochka"]
[Result "1-0"]
[WhiteElo "2647"]
[BlackElo "2300"]
[TimeControl "180+1"]
[EndTime "8:38:58 PST"]
[Termination "FREDERICKtheMATE won by resignation"]

1. d4 {[%clk 0:03:00.9]} 1... Nf6 {[%clk 0:02:59.2]} 2. c4 {[%clk 0:03:01.3]}
2... g6 {[%clk 0:02:59.3]} 3. Nc3 {[%clk 0:03:00.7]} 3... Bg7 {[%clk 0:02:59.3]}
4. e4 {[%clk 0:03:01.1]} 4... O-O {[%clk 0:02:59.7]} 5. Nf3 {[%clk 0:03:01.4]}
5... d6 {[%clk 0:03:00.2]} 6. Be2 {[%clk 0:03:01.5]} 6... e5 {[%clk 0:03:00.7]}
7. Be3 {[%clk 0:03:01.9]} 7... Bg4 {[%clk 0:02:59.8]} 8. h3 {[%clk 0:03:00.9]}
8... Bxf3 {[%clk 0:02:58.6]} 9. Bxf3 {[%clk 0:03:01.8]} 9... exd4 {[%clk
0:02:54.1]} 10. Bxd4 {[%clk 0:03:01.5]} 10... Nc6 {[%clk 0:02:54.7]} 11. O-O
{[%clk 0:02:56.9]} 11... Nxd4 {[%clk 0:02:48]} 12. Qxd4 {[%clk 0:02:57.8]} 12...
Re8 {[%clk 0:02:42.6]} 13. Qd3 {[%clk 0:02:52.5]} 13... Nd7 {[%clk 0:02:39.9]}
14. Rfe1 {[%clk 0:02:45.6]} 14... Bxc3 {[%clk 0:02:31.2]} 15. Qxc3 {[%clk
0:02:45.3]} 15... Qf6 {[%clk 0:02:26.6]} 16. Qb4 {[%clk 0:02:44.6]} 16... Nc5
{[%clk 0:02:07.7]} 17. Rad1 {[%clk 0:02:43]} 17... Re7 {[%clk 0:01:55.3]} 18.
Re3 {[%clk 0:02:31.8]} 18... Rae8 {[%clk 0:01:53.1]} 19. Rde1 {[%clk 0:02:31.9]}
19... Re5 {[%clk 0:01:10.9]} 20. Qd2 {[%clk 0:02:29.1]} 20... Qe7 {[%clk
0:01:10.2]} 21. Qd4 {[%clk 0:02:17.9]} 21... a5 {[%clk 0:01:01.6]} 22. g3 {[%clk
0:02:12.1]} 22... Ne6 {[%clk 0:00:48.2]} 23. Qc3 {[%clk 0:02:10.1]} 23... b6
{[%clk 0:00:41.5]} 24. Bg2 {[%clk 0:02:09.7]} 24... Nc5 {[%clk 0:00:25.7]} 25.
f4 {[%clk 0:01:58.9]} 25... Re6 {[%clk 0:00:25.8]} 26. b3 {[%clk 0:01:46.2]}
26... Qf6 {[%clk 0:00:18.3]} 27. Qxf6 {[%clk 0:01:40.8]} 27... Rxf6 {[%clk
0:00:19.2]} 28. e5 {[%clk 0:01:40.6]} 28... Rfe6 {[%clk 0:00:18.5]} 29. Bd5
{[%clk 0:01:40.2]} 29... R6e7 {[%clk 0:00:18.8]} 30. Bc6 {[%clk 0:01:40.7]}
30... Rd8 {[%clk 0:00:16.3]} 31. Kf1 {[%clk 0:01:37.1]} 31... dxe5 {[%clk
0:00:15.7]} 32. Rxe5 {[%clk 0:01:38]} 32... Rxe5 {[%clk 0:00:13.7]} 33. Rxe5
{[%clk 0:01:38.9]} 33... Rd6 {[%clk 0:00:07.3]} 34. Bf3 {[%clk 0:01:34.1]} 34...
Kf8 {[%clk 0:00:07.5]} 35. Ke2 {[%clk 0:01:30.5]} 35... Nd3 {[%clk 0:00:07.2]}
36. Rd5 {[%clk 0:01:25.4]} 36... Rxd5 {[%clk 0:00:06.9]} 37. Bxd5 {[%clk
0:01:26.3]} 37... Nb4 {[%clk 0:00:07.4]} 38. a3 {[%clk 0:01:25.9]} 38... Nxd5
{[%clk 0:00:07.5]} 39. cxd5 {[%clk 0:01:26.8]} 39... Ke7 {[%clk 0:00:08.1]} 40.
Kd3 {[%clk 0:01:27.4]} 40... Kd6 {[%clk 0:00:09]} 41. Kd4 {[%clk 0:01:28]} 41...
f5 {[%clk 0:00:08.2]} 42. a4 {[%clk 0:01:25.4]} 42... h6 {[%clk 0:00:06.9]} 43.
Kc4 {[%clk 0:01:24.6]} 43... g5 {[%clk 0:00:04.1]} 44. fxg5 {[%clk 0:01:24.1]}
44... hxg5 {[%clk 0:00:05]} 45. Kd4 {[%clk 0:01:24.3]} 45... g4 {[%clk
0:00:02.1]} 46. h4 {[%clk 0:01:24]} 46... c5+ {[%clk 0:00:01.4]} 47. dxc6 {[%clk
0:01:23.9]} 47... b5 {[%clk 0:00:01.5]} 48. axb5 {[%clk 0:01:23.4]} 48... f4
{[%clk 0:00:02.1]} 49. gxf4 {[%clk 0:01:23.3]} 49... g3 {[%clk 0:00:01.1]} 50.
Ke3 {[%clk 0:01:23.8]} 50... Kc5 {[%clk 0:00:02]} 51. c7 {[%clk 0:01:22.7]}
51... Kb4 {[%clk 0:00:02.9]} 52. c8=Q {[%clk 0:01:22.4]} 52... Kxb3 {[%clk
0:00:03.6]} 53. b6 {[%clk 0:01:22.9]} 53... a4 {[%clk 0:00:04]} 54. b7 {[%clk
0:01:23.3]} 54... a3 {[%clk 0:00:04.9]} 55. b8=Q+ {[%clk 0:01:22.8]} 55... Ka2
{[%clk 0:00:05.8]} 1-0

[Event "Early-Titled-Tuesday-Blitz-February-06-2024"]
[Site "Chess.com"]
[Date "2024.02.06"]
[Round "4"]
[White "C_K_G"]
[Black "jasonbolivar"]
[Result "1-0"]
[WhiteElo "2128"]
[BlackElo "2290"]
[TimeControl "180+1"]
[EndTime "8:38:58 PST"]
[Termination "C_K_G won on time"]

1. e4 {[%clk 0:03:00.9]} 1... c5 {[%clk 0:02:59.6]} 2. Nf3 {[%clk 0:02:59.6]}
2... d6 {[%clk 0:02:59.6]} 3. d4 {[%clk 0:03:00.2]} 3... cxd4 {[%clk 0:03:00.2]}
4. Nxd4 {[%clk 0:03:00.7]} 4... Nf6 {[%clk 0:03:00.8]} 5. Nc3 {[%clk 0:03:01.3]}
5... a6 {[%clk 0:03:01.4]} 6. Be2 {[%clk 0:03:00.4]} 6... e5 {[%clk 0:03:01.1]}
7. Nb3 {[%clk 0:03:00.2]} 7... Be7 {[%clk 0:03:01.7]} 8. Be3 {[%clk 0:03:00.8]}
8... Be6 {[%clk 0:03:01.2]} 9. O-O {[%clk 0:03:00.4]} 9... Nbd7 {[%clk
0:02:58.9]} 10. f4 {[%clk 0:02:59.8]} 10... exf4 {[%clk 0:02:55.7]} 11. Rxf4
{[%clk 0:02:59.5]} 11... Ne5 {[%clk 0:02:55.2]} 12. h3 {[%clk 0:02:47]} 12...
O-O {[%clk 0:02:41.2]} 13. Nd4 {[%clk 0:02:33.1]} 13... Rc8 {[%clk 0:02:29.9]}
14. Bd3 {[%clk 0:02:21]} 14... Ng6 {[%clk 0:02:22.3]} 15. Rf1 {[%clk 0:02:16.8]}
15... Nd7 {[%clk 0:02:20.9]} 16. Nf5 {[%clk 0:02:14]} 16... Nde5 {[%clk
0:02:16.3]} 17. Nd5 {[%clk 0:02:05.2]} 17... Bxd5 {[%clk 0:02:07.7]} 18. exd5
{[%clk 0:02:03]} 18... Nxd3 {[%clk 0:02:05.7]} 19. Qxd3 {[%clk 0:01:59.4]} 19...
Ne5 {[%clk 0:02:04.7]} 20. Qd1 {[%clk 0:01:57.3]} 20... Bf6 {[%clk 0:01:56.6]}
21. Bd4 {[%clk 0:01:48.8]} 21... Rc4 {[%clk 0:01:11.6]} 22. b3 {[%clk
0:01:40.1]} 22... Rxd4 {[%clk 0:00:43.3]} 23. Nxd4 {[%clk 0:01:39.8]} 23... Nd7
{[%clk 0:00:35.6]} 24. Rc1 {[%clk 0:01:16.8]} 24... Qb6 {[%clk 0:00:16.3]} 25.
c3 {[%clk 0:01:16.3]} 25... Rc8 {[%clk 0:00:16.5]} 26. Kh1 {[%clk 0:01:06.2]}
26... Be5 {[%clk 0:00:16.5]} 27. Nf5 {[%clk 0:00:57.9]} 27... Re8 {[%clk
0:00:15.6]} 28. c4 {[%clk 0:00:56.9]} 28... g6 {[%clk 0:00:14.9]} 29. Nh6+
{[%clk 0:00:56.8]} 29... Kg7 {[%clk 0:00:13]} 30. Nxf7 {[%clk 0:00:57.3]} 30...
Bf6 {[%clk 0:00:11.2]} 31. Qf3 {[%clk 0:00:54.7]} 31... Kxf7 {[%clk 0:00:10.1]}
32. g4 {[%clk 0:00:52.7]} 32... h6 {[%clk 0:00:04.7]} 33. h4 {[%clk 0:00:52.1]}
33... Kg7 {[%clk 0:00:03]} 34. g5 {[%clk 0:00:51.4]} 34... hxg5 {[%clk
0:00:03.4]} 35. hxg5 {[%clk 0:00:51.8]} 35... Rh8+ {[%clk 0:00:01.5]} 36. Kg2
{[%clk 0:00:51.5]} 1-0

[Event "Early-Titled-Tuesday-Blitz-February-06-2024"]
[Site "Chess.com"]
[Date "2024.02.06"]
[Round "4"]
[White "tandaleo"]
[Black "azikom"]
[Result "1-0"]
[WhiteElo "2540"]
[BlackElo "2701"]
[TimeControl "180+1"]
[EndTime "8:38:59 PST"]
[Termination "tandaleo won on time"]

1. d4 {[%clk 0:03:00.9]} 1... d5 {[%clk 0:02:59.6]} 2. c4 {[%clk 0:03:00.5]}
2... c6 {[%clk 0:02:59.7]} 3. cxd5 {[%clk 0:03:01]} 3... cxd5 {[%clk 0:02:59.9]}
4. Nc3 {[%clk 0:03:01.7]} 4... Nf6 {[%clk 0:02:59.7]} 5. Bf4 {[%clk 0:03:01.9]}
5... Nc6 {[%clk 0:03:00]} 6. e3 {[%clk 0:03:02.2]} 6... a6 {[%clk 0:02:59.9]} 7.
Be2 {[%clk 0:03:01.1]} 7... Bf5 {[%clk 0:02:59.1]} 8. Nf3 {[%clk 0:03:01.3]}
8... e6 {[%clk 0:02:58.3]} 9. O-O {[%clk 0:02:59.9]} 9... Rc8 {[%clk 0:02:53.5]}
10. Qb3 {[%clk 0:02:59.2]} 10... Na5 {[%clk 0:02:42.7]} 11. Qa4+ {[%clk
0:02:59.3]} 11... Nd7 {[%clk 0:02:39.2]} 12. Ne5 {[%clk 0:02:51.3]} 12... Nc6
{[%clk 0:02:38.4]} 13. Nxc6 {[%clk 0:02:47.8]} 13... Rxc6 {[%clk 0:02:37.1]} 14.
Rfc1 {[%clk 0:02:47.2]} 14... Qc8 {[%clk 0:02:27.6]} 15. e4 {[%clk 0:02:27.2]}
15... dxe4 {[%clk 0:02:14.9]} 16. d5 {[%clk 0:02:27.5]} 16... exd5 {[%clk
0:02:09]} 17. Nxd5 {[%clk 0:02:27.8]} 17... Nc5 {[%clk 0:02:04.6]} 18. Qd4
{[%clk 0:02:17.2]} 18... Ne6 {[%clk 0:01:55.3]} 19. Qe5 {[%clk 0:01:16.6]} 19...
Bg6 {[%clk 0:01:46.7]} 20. Rxc6 {[%clk 0:00:47]} 20... bxc6 {[%clk 0:01:46.2]}
21. Rc1 {[%clk 0:00:34]} 21... h5 {[%clk 0:00:37.4]} 22. Bxa6 {[%clk 0:00:31.9]}
22... Qd7 {[%clk 0:00:31.4]} 23. Rxc6 {[%clk 0:00:23.6]} 23... Qxc6 {[%clk
0:00:15.3]} 24. Bb5 {[%clk 0:00:23.9]} 24... Kd7 {[%clk 0:00:11.1]} 25. Nb6+
{[%clk 0:00:21.6]} 1-0

[Event "Early-Titled-Tuesday-Blitz-February-06-2024"]
[Site "Chess.com"]
[Date "2024.02.06"]
[Round "4"]
[White "ActorXu"]
[Black "Leebit02"]
[Result "1-0"]
[WhiteElo "2872"]
[BlackElo "2573"]
[TimeControl "180+1"]
[EndTime "8:39:02 PST"]
[Termination "ActorXu won on time"]

1. d4 {[%clk 0:03:00.9]} 1... d5 {[%clk 0:02:58.4]} 2. c4 {[%clk 0:02:59.8]}
2... dxc4 {[%clk 0:02:58.5]} 3. Nf3 {[%clk 0:02:58.9]} 3... Nf6 {[%clk
0:02:57.8]} 4. e3 {[%clk 0:02:57.5]} 4... e6 {[%clk 0:02:57.2]} 5. Bxc4 {[%clk
0:02:57.4]} 5... c5 {[%clk 0:02:57.7]} 6. O-O {[%clk 0:02:56.8]} 6... a6 {[%clk
0:02:58.3]} 7. Qe2 {[%clk 0:02:54]} 7... b5 {[%clk 0:02:56]} 8. Bb3 {[%clk
0:02:53.4]} 8... Bb7 {[%clk 0:02:44.9]} 9. Rd1 {[%clk 0:02:51]} 9... Nbd7 {[%clk
0:02:37.2]} 10. Nc3 {[%clk 0:02:49]} 10... Rc8 {[%clk 0:02:22.8]} 11. e4 {[%clk
0:02:44.9]} 11... cxd4 {[%clk 0:02:17.7]} 12. Nxd4 {[%clk 0:02:44.4]} 12... Qb6
{[%clk 0:02:11.1]} 13. e5 {[%clk 0:02:40.8]} 13... Bc5 {[%clk 0:01:08.7]} 14.
Nxe6 {[%clk 0:02:10]} 14... fxe6 {[%clk 0:00:54.9]} 15. exf6 {[%clk 0:02:09.1]}
15... Nxf6 {[%clk 0:00:44]} 16. Bxe6 {[%clk 0:02:02.8]} 16... Rc7 {[%clk
0:00:43.2]} 17. Nd5 {[%clk 0:00:49]} 17... Bxd5 {[%clk 0:00:41.9]} 18. Bxd5+
{[%clk 0:00:48.6]} 18... Re7 {[%clk 0:00:42.3]} 19. Qf3 {[%clk 0:00:47.5]} 19...
Rf8 {[%clk 0:00:15.1]} 20. Bc6+ {[%clk 0:00:40.2]} 20... Kf7 {[%clk 0:00:15.4]}
21. Bd5+ {[%clk 0:00:40.9]} 21... Ke8 {[%clk 0:00:15.4]} 22. Bg5 {[%clk
0:00:31.4]} 22... Ne4 {[%clk 0:00:14.9]} 23. Qh5+ {[%clk 0:00:24.4]} 23... g6
{[%clk 0:00:15.2]} 24. Qg4 {[%clk 0:00:22.1]} 24... Bxf2+ {[%clk 0:00:06.4]} 25.
Kh1 {[%clk 0:00:21.7]} 25... Rd7 {[%clk 0:00:02.3]} 26. Qxe4+ {[%clk 0:00:20.6]}
1-0